fUSD/lending_fUSD_20260703
["ID","MTS","AMOUNT","RATE_DAILY","PERIOD"]
[426968149,1783084234000,-517.86537002,0.00025456,2]
[426968128,1783084234000,-14093.5989838,0.00025447,2]
[426968101,1783084234000,-150.0,0.00025008,7]
[426968130,1783084234000,-2577.7272984,0.00025454,2]
[426968103,1783084234000,-221.94320479,0.00025081,30]
[426968100,1783084234000,-466.0,0.00025,2]
[426968106,1783084234000,-508.7927224,0.00025156,7]
[426968108,1783084234000,-1846.6241336,0.00025194,2]
[426968109,1783084234000,-822.33060327,0.00025238,2]
[426968115,1783084234000,-33366.7554,0.0002536,2]
[426968114,1783084234000,-338.02500763,0.00025333,2]
[426968111,1783084234000,-237.32299978,0.00025264,2]
[426968113,1783084234000,-150.0,0.00025306,7]
[426968110,1783084234000,-163.89200631,0.00025238,2]
[426968116,1783084234000,-2000.0,0.0002536,2]
[426968112,1783084234000,-8904.8586328,0.00025299,2]
[426968121,1783084234000,-350.0,0.00025401,2]
[426968126,1783084234000,-634.53,0.00025421,7]
[426968127,1783084234000,-288.2064418,0.00025434,2]
[426968107,1783084234000,-13624.88767319,0.00025175,2]
[426968122,1783084234000,-600.51,0.00025405,2]
[426968123,1783084234000,-160.0,0.00025421,2]
[426968119,1783084234000,-262.69398858,0.000254,2]
[426968120,1783084234000,-363.61628322,0.000254,2]
[426968117,1783084234000,-350.0,0.00025376,2]
[426968118,1783084234000,-350.0,0.00025394,2]
[426968124,1783084234000,-216.74224685,0.00025421,2]
[426968125,1783084234000,-160.0,0.00025421,2]
[426968190,1783084235000,-150.0,0.00025604,7]
[426968195,1783084235000,-338.02500763,0.00025667,2]
[426968193,1783084235000,-248.85,0.00025637,2]
[426968197,1783084235000,-4000.0,0.00025697,2]
[426968192,1783084235000,-185.38,0.00025635,2]
[426968188,1783084235000,-240.75010092,0.00025584,2]
[426968194,1783084235000,-8904.8586328,0.00025649,2]
[426968201,1783084235000,-500.0,0.00025699,2]
[426968191,1783084235000,-151.2,0.00025633,2]
[426968198,1783084235000,-1138.76818905,0.00025699,2]
[426968196,1783084235000,-200.0,0.00025684,2]
[426968199,1783084235000,-519.09710376,0.00025699,2]
[426968214,1783084235000,-151.0,0.000257,2]
[426968208,1783084235000,-8193.64,0.000257,11]
[426968205,1783084235000,-236786.63249918,0.000257,7]
[426968202,1783084235000,-504.93578423,0.00025699,2]
[426968210,1783084235000,-729.031628,0.000257,2]
[426968207,1783084235000,-363.61628322,0.000257,2]
[426968203,1783084235000,-500.0,0.00025699,2]
[426968204,1783084235000,-500.0,0.00025699,2]
[426968212,1783084235000,-729.031628,0.000257,2]
[426968213,1783084235000,-729.031628,0.000257,2]
[426968211,1783084235000,-729.031628,0.000257,2]
[426968206,1783084235000,-262.69398858,0.000257,2]
[426968209,1783084235000,-255.004,0.000257,11]
[426968180,1783084235000,-500.0,0.00025499,2]
[426968200,1783084235000,-584.13964193,0.00025699,2]
[426968178,1783084235000,-1915.26,0.0002546,2]
[426968158,1783084235000,-500.0,0.00025459,2]
[426968187,1783084235000,-13624.88767319,0.00025556,2]
[426968216,1783084235000,-151.0,0.000257,2]
[426968163,1783084235000,-500.0,0.00025459,2]
[426968159,1783084235000,-500.0,0.00025459,2]
[426968157,1783084235000,-500.0,0.00025459,2]
[426968161,1783084235000,-500.0,0.00025459,2]
[426968160,1783084235000,-500.0,0.00025459,2]
[426968162,1783084235000,-500.0,0.00025459,2]
[426968175,1783084235000,-500.0,0.00025459,2]
[426968165,1783084235000,-500.0,0.00025459,2]
[426968176,1783084235000,-500.0,0.00025459,2]
[426968169,1783084235000,-500.0,0.00025459,2]
[426968168,1783084235000,-506.87208765,0.00025459,2]
[426968170,1783084235000,-500.0,0.00025459,2]
[426968186,1783084235000,-277.04572218,0.00025515,2]
[426968167,1783084235000,-500.0,0.00025459,2]
[426968164,1783084235000,-500.0,0.00025459,2]
[426968172,1783084235000,-500.0,0.00025459,2]
[426968173,1783084235000,-500.0,0.00025459,2]
[426968174,1783084235000,-398.52598435,0.00025459,2]
[426968171,1783084235000,-333.84545713,0.00025459,2]
[426968179,1783084235000,-3198.34255855,0.00025489,2]
[426968177,1783084235000,-364983.76643844,0.0002546,2]
[426968185,1783084235000,-822.33060327,0.00025512,2]
[426968184,1783084235000,-2013.0,0.000255,2]
[426968189,1783084235000,-2009.0,0.000256,2]
[426968182,1783084235000,-185.85501841,0.000255,2]
[426968183,1783084235000,-767.553629,0.000255,2]
[426968181,1783084235000,-5938.12590195,0.000255,2]
[426968166,1783084235000,-500.0,0.00025459,2]
[426968218,1783084235000,-2235.43277812,0.00025709,2]
[426968244,1783084235000,-151.0,0.000258,2]
[426968226,1783084235000,-500.0,0.00025799,2]
[426968253,1783084235000,-151.0,0.000258,2]
[426968254,1783084235000,-151.001365,0.000258,2]
[426968252,1783084235000,-151.0,0.000258,2]
[426968255,1783084235000,-151.0,0.000258,2]
[426968251,1783084235000,-151.0,0.000258,2]
[426968257,1783084235000,-263.050961,0.000258,2]
[426968256,1783084235000,-171.32324,0.000258,2]
[426968261,1783084235000,-884.850308,0.000258,2]
[426968258,1783084235000,-263.050961,0.000258,2]
[426968260,1783084235000,-263.050961,0.000258,2]
[426968259,1783084235000,-263.050961,0.000258,2]
[426968263,1783084235000,-884.850308,0.000258,2]
[426968264,1783084235000,-884.850308,0.000258,2]
[426968262,1783084235000,-884.850308,0.000258,2]
[426968268,1783084235000,-151.0,0.000258,2]
[426968272,1783084235000,-219.014256,0.000258,2]
[426968269,1783084235000,-161.972684,0.000258,2]
[426968266,1783084235000,-7600.0,0.000258,9]
[426968271,1783084235000,-219.014256,0.000258,2]
[426968267,1783084235000,-151.0,0.000258,2]
[426968270,1783084235000,-5528.0,0.000258,5]
[426968273,1783084235000,-506.722984,0.000258,2]
[426968274,1783084235000,-219.014256,0.000258,2]
[426968276,1783084235000,-219.014256,0.000258,2]
[426968277,1783084235000,-506.722984,0.000258,2]
[426968275,1783084235000,-506.722984,0.000258,2]
[426968215,1783084235000,-171.279758,0.000257,2]
[426968250,1783084235000,-151.0,0.000258,15]
[426968245,1783084235000,-151.000009,0.000258,2]
[426968265,1783084235000,-151.0,0.000258,2]
[426968243,1783084235000,-151.0,0.000258,2]
[426968217,1783084235000,-151.0,0.000257,2]
[426968241,1783084235000,-226.155883,0.000258,2]
[426968223,1783084235000,-822.33060327,0.00025786,2]
[426968221,1783084235000,-4473.2832155,0.00025772,2]
[426968219,1783084235000,-355.46681934,0.00025747,2]
[426968225,1783084235000,-279.12440684,0.00025796,7]
[426968224,1783084235000,-163.89200631,0.00025786,2]
[426968220,1783084235000,-350.0,0.00025756,2]
[426968228,1783084235000,-500.0,0.000258,7]
[426968235,1783084235000,-767.553629,0.000258,2]
[426968227,1783084235000,-500.0,0.000258,7]
[426968233,1783084235000,-5938.12590195,0.000258,2]
[426968234,1783084235000,-185.85501841,0.000258,2]
[426968222,1783084235000,-200.0,0.00025775,2]
[426968232,1783084235000,-359886.71403034,0.000258,2]
[426968237,1783084235000,-151.0,0.000258,2]
[426968247,1783084235000,-151.0,0.000258,2]
[426968240,1783084235000,-421.168781,0.000258,2]
[426968246,1783084235000,-151.0,0.000258,2]
[426968242,1783084235000,-151.0,0.000258,2]
[426968249,1783084235000,-151.0,0.000258,15]
[426968248,1783084235000,-240.529288,0.000258,2]
[426968239,1783084235000,-500.0,0.000258,2]
[426968231,1783084235000,-220.8,0.000258,7]
[426968230,1783084235000,-500.0,0.000258,7]
[426968236,1783084235000,-151.0,0.000258,2]
[426968229,1783084235000,-500.0,0.000258,7]
[426968238,1783084235000,-151.0,0.000258,2]
[426968305,1783084236000,-1137.31283554,0.00026,2]
[426968307,1783084236000,-12629.38091925,0.00026,10]
[426968306,1783084236000,-4620.53191287,0.00026,2]
[426968309,1783084236000,-192.0,0.00026,2]
[426968300,1783084236000,-613.87319993,0.0002599,2]
[426968303,1783084236000,-8904.8586328,0.00026,2]
[426968302,1783084236000,-500.0,0.00025999,2]
[426968308,1783084236000,-209.0,0.00026,2]
[426968310,1783084236000,-2068.84214299,0.00026,5]
[426968312,1783084236000,-185.85501841,0.00026,2]
[426968313,1783084236000,-767.553629,0.00026,2]
[426968323,1783084236000,-154.0,0.00026,2]
[426968314,1783084236000,-338.02500763,0.00026,2]
[426968322,1783084236000,-476.0,0.00026,2]
[426968321,1783084236000,-330.0,0.00026,2]
[426968316,1783084236000,-333.0,0.00026,2]
[426968315,1783084236000,-284.0,0.00026,2]
[426968304,1783084236000,-336.99361346,0.00026,30]
[426968317,1783084236000,-154.0,0.00026,2]
[426968311,1783084236000,-5938.12590195,0.00026,2]
[426968301,1783084236000,-3396.84651288,0.00025996,2]
[426968287,1783084236000,-363.61628322,0.000259,2]
[426968296,1783084236000,-328.0,0.00025952,2]
[426968318,1783084236000,-5000.0,0.00026,6]
[426968283,1783084236000,-161.61,0.00025817,2]
[426968278,1783084236000,-151.0,0.000258,2]
[426968281,1783084236000,-194.95835294,0.000258,2]
[426968279,1783084236000,-506.722984,0.000258,2]
[426968280,1783084236000,-151.0,0.000258,2]
[426968282,1783084236000,-336.99361346,0.00025808,30]
[426968285,1783084236000,-336.99361346,0.0002589,30]
[426968284,1783084236000,-200.0,0.00025866,2]
[426968299,1783084236000,-200.0,0.00025957,2]
[426968298,1783084236000,-460.0,0.00025952,2]
[426968297,1783084236000,-1081.0,0.00025952,2]
[426968290,1783084236000,-150.0,0.00025901,7]
[426968291,1783084236000,-166.42,0.0002591,2]
[426968289,1783084236000,-10100.0,0.000259,9]
[426968288,1783084236000,-682.54734299,0.000259,2]
[426968295,1783084236000,-200.0,0.00025945,2]
[426968293,1783084236000,-155.01264153,0.00025931,3]
[426968294,1783084236000,-13624.88767319,0.00025937,2]
[426968292,1783084236000,-152.0,0.00025931,3]
[426968286,1783084236000,-262.69398858,0.000259,2]
[426968320,1783084236000,-6126.4124582,0.00026,8]
[426968340,1783084236000,-315.24764111,0.0002601,2]
[426968324,1783084236000,-153.0,0.00026,2]
[426968351,1783084236000,-672.0,0.00026096,5]
[426968358,1783084236000,-500.0,0.00026109,2]
[426968350,1783084236000,-684.0,0.0002609,5]
[426968348,1783084236000,-562.8249,0.0002606,14]
[426968356,1783084236000,-500.0,0.00026109,2]
[426968352,1783084236000,-500.0,0.00026109,2]
[426968359,1783084236000,-500.0,0.00026109,2]
[426968319,1783084236000,-5000.0,0.00026,7]
[426968354,1783084236000,-500.0,0.00026109,2]
[426968357,1783084236000,-500.0,0.00026109,2]
[426968360,1783084236000,-300.0,0.00026109,10]
[426968361,1783084236000,-666.0,0.00026109,2]
[426968362,1783084236000,-300.0,0.00026109,10]
[426968364,1783084236000,-336.99361346,0.0002611,30]
[426968363,1783084236000,-300.0,0.00026109,10]
[426968365,1783084236000,-126716.0851036,0.0002611,2]
[426968366,1783084236000,-1018.4119935,0.0002611,2]
[426968367,1783084236000,-3385.0616295,0.0002611,2]
[426968368,1783084236000,-424650.07861706,0.0002611,2]
[426968353,1783084236000,-500.0,0.00026109,2]
[426968347,1783084236000,-415.97811918,0.0002606,14]
[426968349,1783084236000,-500.0,0.00026072,2]
[426968343,1783084236000,-160.45,0.00026027,7]
[426968355,1783084236000,-500.0,0.00026109,2]
[426968328,1783084236000,-466.0,0.00026,2]
[426968327,1783084236000,-161.0,0.00026,2]
[426968332,1783084236000,-729.031628,0.00026,2]
[426968325,1783084236000,-425.0,0.00026,2]
[426968330,1783084236000,-729.031628,0.00026,2]
[426968329,1783084236000,-729.031628,0.00026,2]
[426968333,1783084236000,-151.0,0.00026,2]
[426968331,1783084236000,-729.031628,0.00026,2]
[426968334,1783084236000,-151.0,0.00026,2]
[426968326,1783084236000,-161.0,0.00026,2]
[426968346,1783084236000,-278.07135664,0.0002606,14]
[426968335,1783084236000,-151.0,0.00026,2]
[426968337,1783084236000,-174.34275616,0.0002601,4]
[426968338,1783084236000,-321.51642204,0.0002601,2]
[426968339,1783084236000,-275.8386367,0.0002601,2]
[426968345,1783084236000,-822.33060327,0.0002606,2]
[426968344,1783084236000,-200.0,0.00026047,2]
[426968342,1783084236000,-163.7,0.00026027,7]
[426968341,1783084236000,-151.0,0.00026014,5]
[426968336,1783084236000,-342.94091567,0.00026009,2]
[426968369,1783084237000,-1646.69190134,0.0002611,2]
[426968370,1783084237000,-542.61816382,0.0002611,2]
[426968392,1783084238000,-472.07491802,0.00022561,2]
[426968401,1783084238000,-500.0,0.00022561,2]
[426968388,1783084238000,-500.0,0.00022561,2]
[426968387,1783084238000,-392.70530956,0.00022561,2]
[426968400,1783084238000,-500.0,0.00022561,2]
[426968389,1783084238000,-500.0,0.00022561,2]
[426968399,1783084238000,-500.0,0.00022561,2]
[426968386,1783084238000,-505.16108093,0.00022561,2]
[426968381,1783084238000,-355.00836146,0.00022561,2]
[426968383,1783084238000,-500.0,0.00022561,2]
[426968380,1783084238000,-500.31188821,0.00022561,2]
[426968385,1783084238000,-500.0,0.00022561,2]
[426968382,1783084238000,-500.0,0.00022561,2]
[426968398,1783084238000,-500.0,0.00022561,2]
[426968378,1783084238000,-282.9,0.00020607,2]
[426968379,1783084238000,-236.65370958,0.00022561,2]
[426968384,1783084238000,-500.0,0.00022561,2]
[426968390,1783084238000,-500.0,0.00022561,2]
[426968410,1783084238000,-500.0,0.00022561,2]
[426968391,1783084238000,-500.0,0.00022561,2]
[426968396,1783084238000,-500.0,0.00022561,2]
[426968417,1783084238000,-495.06654832,0.00022561,2]
[426968415,1783084238000,-500.0,0.00022561,2]
[426968408,1783084238000,-500.0,0.00022561,2]
[426968413,1783084238000,-500.0,0.00022561,2]
[426968409,1783084238000,-500.0,0.00022561,2]
[426968411,1783084238000,-268.95925456,0.00022561,2]
[426968407,1783084238000,-500.0,0.00022561,2]
[426968412,1783084238000,-500.0,0.00022561,2]
[426968403,1783084238000,-535.37011294,0.00022561,2]
[426968406,1783084238000,-500.0,0.00022561,2]
[426968405,1783084238000,-500.0,0.00022561,2]
[426968402,1783084238000,-500.0,0.00022561,2]
[426968397,1783084238000,-514.75352256,0.00022561,2]
[426968394,1783084238000,-500.0,0.00022561,2]
[426968393,1783084238000,-500.0,0.00022561,2]
[426968395,1783084238000,-500.0,0.00022561,2]
[426968404,1783084238000,-500.0,0.00022561,2]
[426968461,1783084239000,-500.0,0.00022561,2]
[426968463,1783084239000,-500.0,0.00022561,2]
[426968462,1783084239000,-500.0,0.00022561,2]
[426968452,1783084239000,-500.0,0.00022561,2]
[426968450,1783084239000,-500.0,0.00022561,2]
[426968457,1783084239000,-500.0,0.00022561,2]
[426968448,1783084239000,-500.0,0.00022561,2]
[426968447,1783084239000,-500.0,0.00022561,2]
[426968445,1783084239000,-500.0,0.00022561,2]
[426968460,1783084239000,-500.0,0.00022561,2]
[426968449,1783084239000,-500.0,0.00022561,2]
[426968464,1783084239000,-500.0,0.00022561,2]
[426968472,1783084239000,-500.0,0.00022561,2]
[426968467,1783084239000,-500.0,0.00022561,2]
[426968468,1783084239000,-500.0,0.00022561,2]
[426968466,1783084239000,-500.0,0.00022561,2]
[426968459,1783084239000,-500.0,0.00022561,2]
[426968470,1783084239000,-500.0,0.00022561,2]
[426968480,1783084239000,-500.0,0.00022561,2]
[426968471,1783084239000,-500.0,0.00022561,2]
[426968446,1783084239000,-500.0,0.00022561,2]
[426968469,1783084239000,-500.0,0.00022561,2]
[426968475,1783084239000,-500.0,0.00022561,2]
[426968473,1783084239000,-500.0,0.00022561,2]
[426968465,1783084239000,-500.0,0.00022561,2]
[426968443,1783084239000,-500.0,0.00022561,2]
[426968441,1783084239000,-500.0,0.00022561,2]
[426968444,1783084239000,-500.0,0.00022561,2]
[426968426,1783084239000,-500.0,0.00022561,2]
[426968427,1783084239000,-500.0,0.00022561,2]
[426968425,1783084239000,-500.0,0.00022561,2]
[426968430,1783084239000,-500.0,0.00022561,2]
[426968428,1783084239000,-500.0,0.00022561,2]
[426968424,1783084239000,-500.0,0.00022561,2]
[426968419,1783084239000,-500.0,0.00022561,2]
[426968429,1783084239000,-500.0,0.00022561,2]
[426968421,1783084239000,-500.0,0.00022561,2]
[426968423,1783084239000,-500.0,0.00022561,2]
[426968422,1783084239000,-500.0,0.00022561,2]
[426968456,1783084239000,-500.0,0.00022561,2]
[426968433,1783084239000,-500.0,0.00022561,2]
[426968434,1783084239000,-500.0,0.00022561,2]
[426968436,1783084239000,-500.0,0.00022561,2]
[426968435,1783084239000,-500.0,0.00022561,2]
[426968437,1783084239000,-500.0,0.00022561,2]
[426968476,1783084239000,-500.0,0.00022561,2]
[426968440,1783084239000,-500.0,0.00022561,2]
[426968438,1783084239000,-500.0,0.00022561,2]
[426968432,1783084239000,-500.0,0.00022561,2]
[426968439,1783084239000,-500.0,0.00022561,2]
[426968442,1783084239000,-576.10380644,0.00022561,2]
[426968454,1783084239000,-500.0,0.00022561,2]
[426968431,1783084239000,-500.0,0.00022561,2]
[426968478,1783084239000,-500.0,0.00022561,2]
[426968458,1783084239000,-500.0,0.00022561,2]
[426968479,1783084239000,-500.0,0.00022561,2]
[426968509,1783084239000,-151.0,0.0002611,2]
[426968510,1783084239000,-151.0,0.0002611,2]
[426968512,1783084239000,-151.0,0.0002611,2]
[426968516,1783084239000,-151.0,0.0002611,2]
[426968514,1783084239000,-151.0,0.0002611,2]
[426968513,1783084239000,-151.0,0.0002611,2]
[426968515,1783084239000,-295.375301,0.0002611,2]
[426968511,1783084239000,-151.0,0.0002611,2]
[426968520,1783084239000,-151.0,0.0002611,2]
[426968518,1783084239000,-151.0,0.0002611,2]
[426968517,1783084239000,-151.0,0.0002611,2]
[426968521,1783084239000,-263.050961,0.0002611,2]
[426968533,1783084239000,-506.722984,0.0002611,2]
[426968523,1783084239000,-263.050961,0.0002611,2]
[426968522,1783084239000,-263.050961,0.0002611,2]
[426968524,1783084239000,-263.050961,0.0002611,2]
[426968525,1783084239000,-884.850308,0.0002611,2]
[426968528,1783084239000,-884.850308,0.0002611,2]
[426968531,1783084239000,-219.014256,0.0002611,2]
[426968526,1783084239000,-884.850308,0.0002611,2]
[426968527,1783084239000,-884.850308,0.0002611,2]
[426968529,1783084239000,-152.450153,0.0002611,2]
[426968530,1783084239000,-151.0,0.0002611,2]
[426968532,1783084239000,-219.014256,0.0002611,2]
[426968474,1783084239000,-500.0,0.00022561,2]
[426968508,1783084239000,-151.0,0.0002611,2]
[426968505,1783084239000,-68702.27029888,0.0002611,2]
[426968519,1783084239000,-151.0,0.0002611,2]
[426968507,1783084239000,-187.763118,0.0002611,2]
[426968477,1783084239000,-500.0,0.00022561,2]
[426968506,1783084239000,-153.657683,0.0002611,2]
[426968482,1783084239000,-500.0,0.00022561,2]
[426968487,1783084239000,-500.0,0.00022561,2]
[426968490,1783084239000,-500.0,0.00022561,2]
[426968485,1783084239000,-500.0,0.00022561,2]
[426968486,1783084239000,-500.0,0.00022561,2]
[426968483,1783084239000,-500.0,0.00022561,2]
[426968484,1783084239000,-500.0,0.00022561,2]
[426968489,1783084239000,-500.0,0.00022561,2]
[426968488,1783084239000,-500.0,0.00022561,2]
[426968491,1783084239000,-500.0,0.00022561,2]
[426968492,1783084239000,-500.0,0.00022561,2]
[426968481,1783084239000,-500.0,0.00022561,2]
[426968501,1783084239000,-500.0,0.00022561,2]
[426968500,1783084239000,-500.0,0.00022561,2]
[426968503,1783084239000,-158.5,0.00024658,2]
[426968502,1783084239000,-500.0,0.00022561,2]
[426968498,1783084239000,-500.0,0.00022561,2]
[426968496,1783084239000,-500.0,0.00022561,2]
[426968495,1783084239000,-500.0,0.00022561,2]
[426968504,1783084239000,-372.63828444,0.0002545,2]
[426968499,1783084239000,-500.0,0.00022561,2]
[426968494,1783084239000,-500.0,0.00022561,2]
[426968493,1783084239000,-500.0,0.00022561,2]
[426968497,1783084239000,-500.0,0.00022561,2]
[426968565,1783084240000,-575.42252142,0.0002618,2]
[426968577,1783084240000,-154.61186558,0.00026269,2]
[426968566,1783084240000,-150.0,0.00026199,7]
[426968564,1783084240000,-158.34541041,0.00026164,2]
[426968563,1783084240000,-175.68557957,0.00026164,2]
[426968570,1783084240000,-1787.24690905,0.00026203,7]
[426968573,1783084240000,-300.0,0.00026219,10]
[426968572,1783084240000,-300.0,0.00026219,10]
[426968567,1783084240000,-262.69398858,0.000262,2]
[426968571,1783084240000,-200.0,0.00026204,2]
[426968580,1783084240000,-2000.0,0.0002627,2]
[426968574,1783084240000,-336.99361346,0.00026219,30]
[426968584,1783084240000,-5549.0,0.00026277,5]
[426968579,1783084240000,-2000.0,0.0002627,2]
[426968575,1783084240000,-671.0,0.00026228,5]
[426968578,1783084240000,-2000.0,0.0002627,2]
[426968581,1783084240000,-2000.0,0.0002627,2]
[426968583,1783084240000,-2000.0,0.0002627,2]
[426968589,1783084240000,-767.553629,0.000263,2]
[426968588,1783084240000,-185.85501841,0.000263,2]
[426968591,1783084240000,-175.565002,0.00026301,2]
[426968585,1783084240000,-4438.0,0.00026277,5]
[426968586,1783084240000,-1082.6663738,0.00026289,10]
[426968587,1783084240000,-5938.12590195,0.000263,2]
[426968560,1783084240000,-172.35589894,0.00026164,2]
[426968576,1783084240000,-200.0,0.00026228,2]
[426968568,1783084240000,-363.61628322,0.000262,2]
[426968534,1783084240000,-219.014256,0.0002611,2]
[426968561,1783084240000,-174.8582003,0.00026164,2]
[426968582,1783084240000,-2000.0,0.0002627,2]
[426968536,1783084240000,-219.014256,0.0002611,2]
[426968538,1783084240000,-506.722984,0.0002611,2]
[426968541,1783084240000,-729.031628,0.0002611,2]
[426968543,1783084240000,-729.031628,0.0002611,2]
[426968545,1783084240000,-151.0,0.0002611,2]
[426968535,1783084240000,-506.722984,0.0002611,2]
[426968539,1783084240000,-151.0,0.0002611,2]
[426968540,1783084240000,-151.0,0.0002611,2]
[426968537,1783084240000,-506.722984,0.0002611,2]
[426968544,1783084240000,-729.031628,0.0002611,2]
[426968542,1783084240000,-729.031628,0.0002611,2]
[426968562,1783084240000,-188.69077815,0.00026164,2]
[426968547,1783084240000,-169.6841,0.0002611,2]
[426968556,1783084240000,-521.2435334,0.00026164,2]
[426968557,1783084240000,-158.51322321,0.00026164,2]
[426968548,1783084240000,-200.0,0.00026138,2]
[426968549,1783084240000,-1846.6241336,0.00026157,2]
[426968551,1783084240000,-364.88683371,0.00026162,2]
[426968550,1783084240000,-380.78878659,0.00026162,2]
[426968554,1783084240000,-167.75133923,0.00026164,2]
[426968553,1783084240000,-247.60894103,0.00026164,2]
[426968555,1783084240000,-194.68792008,0.00026164,2]
[426968552,1783084240000,-316.60599588,0.00026162,2]
[426968559,1783084240000,-187.26818293,0.00026164,2]
[426968558,1783084240000,-174.99568893,0.00026164,2]
[426968546,1783084240000,-151.0,0.0002611,2]
[426968592,1783084240000,-300.0,0.00026314,10]
[426968569,1783084240000,-317.0,0.000262,2]
[426968594,1783084240000,-15000.0,0.00026315,2]
[426968622,1783084240000,-350.0,0.00026491,2]
[426968623,1783084240000,-150.0,0.00026497,7]
[426968627,1783084240000,-336.99361346,0.00026521,30]
[426968626,1783084240000,-214.76,0.000265,2]
[426968628,1783084240000,-157.172891,0.0002653,2]
[426968630,1783084240000,-500.0,0.00026531,2]
[426968631,1783084240000,-500.0,0.00026531,2]
[426968635,1783084240000,-2000.0,0.00026532,2]
[426968636,1783084240000,-2000.0,0.00026532,2]
[426968633,1783084240000,-500.0,0.00026531,2]
[426968634,1783084240000,-57621.34355285,0.00026532,2]
[426968638,1783084240000,-2000.0,0.00026532,2]
[426968621,1783084240000,-350.0,0.00026466,7]
[426968637,1783084240000,-2000.0,0.00026532,2]
[426968639,1783084240000,-2000.0,0.00026532,2]
[426968641,1783084240000,-300.0,0.00026532,7]
[426968644,1783084240000,-455.0,0.00026558,2]
[426968649,1783084240000,-389.0,0.000266,2]
[426968645,1783084240000,-382.0,0.00026561,2]
[426968642,1783084240000,-250.0,0.00026532,5]
[426968640,1783084240000,-2000.0,0.00026532,2]
[426968648,1783084240000,-663.0,0.00026599,5]
[426968650,1783084240000,-5938.12590195,0.000266,2]
[426968646,1783084240000,-680.0,0.00026572,5]
[426968643,1783084240000,-386.0,0.00026538,2]
[426968590,1783084240000,-336.99361346,0.00026301,30]
[426968629,1783084240000,-500.0,0.00026531,2]
[426968620,1783084240000,-573.67,0.00026459,2]
[426968632,1783084240000,-500.0,0.00026531,2]
[426968625,1783084240000,-363.61628322,0.000265,2]
[426968624,1783084240000,-262.69398858,0.000265,2]
[426968593,1783084240000,-421.11904617,0.00026314,10]
[426968596,1783084240000,-200.0,0.00026319,2]
[426968598,1783084240000,-150.0,0.00026325,2]
[426968597,1783084240000,-150.0,0.00026325,2]
[426968603,1783084240000,-223.0,0.00026325,2]
[426968599,1783084240000,-250.0,0.00026325,2]
[426968595,1783084240000,-13624.88767319,0.00026319,2]
[426968602,1783084240000,-1279.0,0.00026325,2]
[426968601,1783084240000,-3567.0,0.00026325,2]
[426968600,1783084240000,-150.0,0.00026325,2]
[426968605,1783084240000,-822.33060327,0.00026334,2]
[426968609,1783084240000,-350.0,0.00026377,2]
[426968608,1783084240000,-4165.15563937,0.00026368,2]
[426968604,1783084240000,-1236.649,0.00026325,2]
[426968619,1783084240000,-185.38,0.00026457,2]
[426968607,1783084240000,-8904.8586328,0.0002635,2]
[426968617,1783084240000,-4165.15563937,0.0002643,2]
[426968618,1783084240000,-500.0,0.00026431,2]
[426968616,1783084240000,-336.99361346,0.00026411,30]